fUSD/lending_fUSD_20260530
["ID","MTS","AMOUNT","RATE_DAILY","PERIOD"]
[423425403,1780107036000,-500.0,0.00014675,2]
[423425399,1780107036000,-500.0,0.00014675,2]
[423425422,1780107036000,-150.0,0.0001478,2]
[423425418,1780107036000,-150.0,0.0001475,2]
[423425426,1780107036000,-150.0,0.00014799,2]
[423425424,1780107036000,-150.0,0.00014786,2]
[423425428,1780107036000,-190.72823264,0.000148,10]
[423425427,1780107036000,-211.48785882,0.000148,2]
[423425425,1780107036000,-194.77824471,0.0001479,2]
[423425432,1780107036000,-194.77824471,0.0001482,2]
[423425434,1780107036000,-409.0,0.00014822,2]
[423425441,1780107036000,-25000.0,0.0001483,3]
[423425436,1780107036000,-150.0,0.00014824,2]
[423425435,1780107036000,-384.75,0.00014824,2]
[423425445,1780107036000,-150.0,0.00014836,2]
[423425444,1780107036000,-194.77824471,0.00014835,2]
[423425440,1780107036000,-150.0,0.00014829,2]
[423425442,1780107036000,-841.49,0.0001483,2]
[423425437,1780107036000,-1424.77,0.00014825,2]
[423425438,1780107036000,-540.01,0.00014825,2]
[423425439,1780107036000,-212.19572132,0.00014828,2]
[423425443,1780107036000,-150.0,0.00014831,2]
[423425433,1780107036000,-25000.0,0.00014821,3]
[423425446,1780107036000,-504.31099771,0.00014837,2]
[423425396,1780107036000,-150.0,0.00014671,2]
[423425421,1780107036000,-194.77824471,0.00014774,2]
[423425420,1780107036000,-194.77824471,0.00014759,2]
[423425415,1780107036000,-150.0,0.00014737,2]
[423425431,1780107036000,-25000.0,0.00014812,3]
[423425397,1780107036000,-632.03,0.00014675,2]
[423425398,1780107036000,-586.94,0.00014675,2]
[423425400,1780107036000,-823.3,0.00014675,2]
[423425402,1780107036000,-500.0,0.00014675,2]
[423425401,1780107036000,-736.64,0.00014675,2]
[423425407,1780107036000,-150.0,0.00014687,2]
[423425404,1780107036000,-150.0,0.00014676,2]
[423425408,1780107036000,-194.77824471,0.00014699,2]
[423425406,1780107036000,-194.77824471,0.00014684,2]
[423425409,1780107036000,-2896.080447,0.000147,2]
[423425410,1780107036000,-150.0,0.00014703,2]
[423425393,1780107036000,-150.0,0.00014662,2]
[423425412,1780107036000,-150.0,0.00014728,2]
[423425405,1780107036000,-1082.7160574,0.00014677,2]
[423425419,1780107036000,-212.19572133,0.00014756,2]
[423425429,1780107036000,-25000.0,0.00014803,3]
[423425416,1780107036000,-150.0,0.00014743,2]
[423425430,1780107036000,-194.77824471,0.00014805,2]
[423425414,1780107036000,-150.0,0.00014737,2]
[423425413,1780107036000,-194.77824471,0.00014729,2]
[423425417,1780107036000,-194.77824471,0.00014744,2]
[423425411,1780107036000,-194.77824471,0.00014714,2]
[423425423,1780107036000,-150.0,0.00014784,2]
[423425463,1780107037000,-500.0,0.00014837,2]
[423425455,1780107037000,-500.0,0.00014837,2]
[423425467,1780107037000,-525.0,0.00014838,2]
[423425464,1780107037000,-928.0,0.00014838,2]
[423425461,1780107037000,-500.0,0.00014837,4]
[423425462,1780107037000,-4911.21,0.00014837,2]
[423425470,1780107037000,-3638.0,0.00014838,2]
[423425459,1780107037000,-500.0,0.00014837,2]
[423425460,1780107037000,-500.0,0.00014837,3]
[423425453,1780107037000,-693.83,0.00014837,2]
[423425450,1780107037000,-1267.3,0.00014837,2]
[423425451,1780107037000,-765.01,0.00014837,2]
[423425452,1780107037000,-743.81,0.00014837,2]
[423425456,1780107037000,-500.0,0.00014837,2]
[423425449,1780107037000,-377.06035753,0.00014837,2]
[423425448,1780107037000,-500.0,0.00014837,2]
[423425458,1780107037000,-1497.12,0.00014837,2]
[423425457,1780107037000,-500.0,0.00014837,2]
[423425447,1780107037000,-500.0,0.00014837,2]
[423425466,1780107037000,-1356.0,0.00014838,2]
[423425454,1780107037000,-716.95,0.00014837,2]
[423425465,1780107037000,-3550.0,0.00014838,2]
[423425475,1780107037000,-25000.0,0.00014847,3]
[423425471,1780107037000,-418.0,0.00014838,2]
[423425491,1780107037000,-781.95418243,0.00014874,3]
[423425487,1780107037000,-150.0,0.00014865,2]
[423425489,1780107037000,-194.77824471,0.00014865,2]
[423425490,1780107037000,-2420.37433279,0.00014874,3]
[423425488,1780107037000,-25000.0,0.00014865,3]
[423425492,1780107037000,-344.0,8.497e-05,2]
[423425486,1780107037000,-500.0,0.00014864,2]
[423425468,1780107037000,-1272.0,0.00014838,2]
[423425481,1780107037000,-586.94,0.00014864,2]
[423425478,1780107037000,-500.0,0.00014856,2]
[423425479,1780107037000,-150.0,0.00014861,2]
[423425485,1780107037000,-500.0,0.00014864,2]
[423425482,1780107037000,-500.0,0.00014864,2]
[423425477,1780107037000,-25000.0,0.00014856,3]
[423425473,1780107037000,-475.61764834,0.00014846,2]
[423425474,1780107037000,-500.0,0.00014846,2]
[423425484,1780107037000,-736.64,0.00014864,2]
[423425469,1780107037000,-1226.0,0.00014838,2]
[423425483,1780107037000,-823.3,0.00014864,2]
[423425476,1780107037000,-194.77824471,0.0001485,2]
[423425480,1780107037000,-632.03,0.00014864,2]
[423425472,1780107037000,-25000.0,0.00014838,3]
[423425512,1780107038000,-590.53207903,0.00013699,2]
[423425494,1780107038000,1180.28,0.00028082,120]
[423425497,1780107038000,-500.0,8.497e-05,2]
[423425496,1780107038000,-156.0,8.497e-05,2]
[423425498,1780107038000,-310.65687518,8.497e-05,2]
[423425500,1780107038000,-500.0,8.497e-05,2]
[423425499,1780107038000,-500.0,8.497e-05,2]
[423425502,1780107038000,-500.0,8.497e-05,2]
[423425513,1780107038000,-590.53207903,0.00013699,2]
[423425509,1780107038000,-590.53207903,0.00013699,2]
[423425503,1780107038000,-376.4928765,8.497e-05,2]
[423425505,1780107038000,-5000.0,0.00013599,2]
[423425501,1780107038000,-500.0,8.497e-05,2]
[423425506,1780107038000,-183.241988,0.00013645,2]
[423425508,1780107038000,-590.53207903,0.00013699,2]
[423425511,1780107038000,-590.53207903,0.00013699,2]
[423425507,1780107038000,-590.53207903,0.00013699,2]
[423425510,1780107038000,-590.53207903,0.00013699,2]
[423425514,1780107038000,-590.53207903,0.00013699,2]
[423425504,1780107038000,-215.5484138,8.681e-05,2]
[423425570,1780107039000,-590.53207903,0.00013699,2]
[423425583,1780107039000,-590.53207903,0.00013699,2]
[423425585,1780107039000,-590.53207903,0.00013699,2]
[423425572,1780107039000,-590.53207903,0.00013699,2]
[423425587,1780107039000,-590.53207903,0.00013699,2]
[423425551,1780107039000,-590.53207903,0.00013699,2]
[423425579,1780107039000,-590.53207903,0.00013699,2]
[423425581,1780107039000,-590.53207903,0.00013699,2]
[423425577,1780107039000,-590.53207903,0.00013699,2]
[423425553,1780107039000,-590.53207903,0.00013699,2]
[423425575,1780107039000,-590.53207903,0.00013699,2]
[423425589,1780107039000,-590.53207903,0.00013699,2]
[423425608,1780107039000,-590.53207903,0.00013699,2]
[423425602,1780107039000,-590.53207903,0.00013699,2]
[423425593,1780107039000,-590.53207903,0.00013699,2]
[423425555,1780107039000,-590.53207903,0.00013699,2]
[423425591,1780107039000,-590.53207903,0.00013699,2]
[423425610,1780107039000,-590.53207903,0.00013699,2]
[423425606,1780107039000,-590.53207903,0.00013699,2]
[423425614,1780107039000,-590.53207903,0.00013699,2]
[423425595,1780107039000,-590.53207903,0.00013699,2]
[423425600,1780107039000,-590.53207903,0.00013699,2]
[423425598,1780107039000,-590.53207903,0.00013699,2]
[423425612,1780107039000,-590.53207903,0.00013699,2]
[423425616,1780107039000,-590.53207903,0.00013699,2]
[423425604,1780107039000,-590.53207903,0.00013699,2]
[423425557,1780107039000,-590.53207903,0.00013699,2]
[423425528,1780107039000,-590.53207903,0.00013699,2]
[423425531,1780107039000,-590.53207903,0.00013699,2]
[423425618,1780107039000,-590.53207903,0.00013699,2]
[423425515,1780107039000,-590.53207903,0.00013699,2]
[423425517,1780107039000,-590.53207903,0.00013699,2]
[423425516,1780107039000,-590.53207903,0.00013699,2]
[423425519,1780107039000,-590.53207903,0.00013699,2]
[423425525,1780107039000,-590.53207903,0.00013699,2]
[423425520,1780107039000,-590.53207903,0.00013699,2]
[423425518,1780107039000,-590.53207903,0.00013699,2]
[423425527,1780107039000,-590.53207903,0.00013699,2]
[423425526,1780107039000,-590.53207903,0.00013699,2]
[423425523,1780107039000,-590.53207903,0.00013699,2]
[423425524,1780107039000,-590.53207903,0.00013699,2]
[423425521,1780107039000,-590.53207903,0.00013699,2]
[423425522,1780107039000,-590.53207903,0.00013699,2]
[423425529,1780107039000,-590.53207903,0.00013699,2]
[423425539,1780107039000,-590.53207903,0.00013699,2]
[423425541,1780107039000,-590.53207903,0.00013699,2]
[423425543,1780107039000,-590.53207903,0.00013699,2]
[423425537,1780107039000,-590.53207903,0.00013699,2]
[423425545,1780107039000,-590.53207903,0.00013699,2]
[423425533,1780107039000,-590.53207903,0.00013699,2]
[423425535,1780107039000,-590.53207903,0.00013699,2]
[423425532,1780107039000,-590.53207903,0.00013699,2]
[423425530,1780107039000,-590.53207903,0.00013699,2]
[423425547,1780107039000,-590.53207903,0.00013699,2]
[423425549,1780107039000,-590.53207903,0.00013699,2]
[423425622,1780107039000,-590.53207903,0.00013699,2]
[423425643,1780107039000,-25000.0,0.00014891,3]
[423425624,1780107039000,-590.53207903,0.00013699,2]
[423425694,1780107039000,-214.21081884,0.00014986,2]
[423425692,1780107039000,-194.77824471,0.00014971,2]
[423425689,1780107039000,-188.0,0.00014959,2]
[423425706,1780107039000,-151.9125752,0.00014986,2]
[423425696,1780107039000,-228.69569303,0.00014986,2]
[423425708,1780107039000,-194.77824471,0.00014986,2]
[423425712,1780107039000,-151.0,0.00014997,2]
[423425710,1780107039000,-1600.0,0.00014991,2]
[423425698,1780107039000,-232.60106033,0.00014986,2]
[423425702,1780107039000,-181.02063174,0.00014986,2]
[423425704,1780107039000,-246.412936,0.00014986,2]
[423425700,1780107039000,-273.46900396,0.00014986,2]
[423425685,1780107039000,-150.0,0.00014946,2]
[423425716,1780107039000,-586.94,0.00014997,2]
[423425721,1780107039000,-823.3,0.00014997,2]
[423425731,1780107039000,-632.03,0.00014999,2]
[423425733,1780107039000,-632.03,0.00014999,2]
[423425725,1780107039000,-736.64,0.00014997,2]
[423425729,1780107039000,-500.0,0.00014997,2]
[423425735,1780107039000,-632.03,0.00014999,2]
[423425737,1780107039000,-632.03,0.00014999,2]
[423425739,1780107039000,-632.03,0.00014999,2]
[423425727,1780107039000,-500.0,0.00014997,2]
[423425723,1780107039000,-500.0,0.00014997,2]
[423425620,1780107039000,-590.53207903,0.00013699,2]
[423425741,1780107039000,-632.03,0.00014999,2]
[423425719,1780107039000,-500.0,0.00014997,2]
[423425687,1780107039000,-194.77824471,0.00014956,2]
[423425714,1780107039000,-632.03,0.00014997,2]
[423425681,1780107039000,-150.0,0.00014936,2]
[423425633,1780107039000,-163.0,0.0001488,2]
[423425631,1780107039000,-21797.67148478,0.00014874,3]
[423425683,1780107039000,-194.77824471,0.00014941,2]
[423425626,1780107039000,-590.53207903,0.00013699,2]
[423425628,1780107039000,-590.53207903,0.00013699,2]
[423425637,1780107039000,-25000.0,0.00014882,3]
[423425641,1780107039000,-150.0,0.00014886,2]
[423425635,1780107039000,-194.77824471,0.0001488,2]
[423425638,1780107039000,-150.0,0.00014883,2]
[423425656,1780107039000,-25000.0,0.000149,3]
[423425662,1780107039000,-8228.59595473,0.000149,2]
[423425658,1780107039000,-4654.23758564,0.000149,2]
[423425647,1780107039000,-514.63087631,0.000149,2]
[423425660,1780107039000,-605.60164503,0.000149,2]
[423425675,1780107039000,-199.11942079,0.00014925,2]
[423425677,1780107039000,-194.77824471,0.00014926,2]
[423425679,1780107039000,-150.0,0.00014935,2]
[423425649,1780107039000,-8288.35359057,0.000149,3]
[423425672,1780107039000,-194.77824471,0.00014911,2]
[423425671,1780107039000,-150.0,0.00014907,2]
[423425666,1780107039000,-35948.55203114,0.000149,2]
[423425668,1780107039000,-150.0,0.00014905,2]
[423425653,1780107039000,-15690.80252551,0.000149,2]
[423425651,1780107039000,-11898.93041716,0.000149,3]
[423425645,1780107039000,-194.77824471,0.00014895,2]
[423425664,1780107039000,-212.19572132,0.000149,2]
[423425824,1780107040000,-500.0,0.00014999,2]
[423425828,1780107040000,-500.0,0.00014999,2]
[423425826,1780107040000,-452.6,0.00014999,2]
[423425830,1780107040000,-500.0,0.00014999,2]
[423425821,1780107040000,-500.0,0.00014999,2]
[423425809,1780107040000,-500.0,0.00014999,2]
[423425817,1780107040000,-500.0,0.00014999,2]
[423425819,1780107040000,-500.0,0.00014999,2]
[423425811,1780107040000,-500.0,0.00014999,2]
[423425842,1780107040000,-823.3,0.00014999,2]
[423425807,1780107040000,-500.0,0.00014999,2]
[423425813,1780107040000,-497.78987791,0.00014999,2]
[423425832,1780107040000,-500.0,0.00014999,2]
[423425856,1780107040000,-823.3,0.00014999,2]
[423425838,1780107040000,-500.0,0.00014999,2]
[423425836,1780107040000,-500.0,0.00014999,2]
[423425840,1780107040000,-627.391729,0.00014999,2]
[423425834,1780107040000,-500.0,0.00014999,2]
[423425847,1780107040000,-823.3,0.00014999,2]
[423425851,1780107040000,-823.3,0.00014999,2]
[423425743,1780107040000,-632.03,0.00014999,2]
[423425854,1780107040000,-823.3,0.00014999,2]
[423425849,1780107040000,-823.3,0.00014999,2]
[423425862,1780107040000,-823.3,0.00014999,2]
[423425867,1780107040000,-823.3,0.00014999,2]
[423425865,1780107040000,-823.3,0.00014999,2]
[423425815,1780107040000,-500.0,0.00014999,2]
[423425844,1780107040000,-823.3,0.00014999,2]
[423425795,1780107040000,-500.0,0.00014999,2]
[423425752,1780107040000,-632.03,0.00014999,2]
[423425797,1780107040000,-500.0,0.00014999,2]
[423425858,1780107040000,-823.3,0.00014999,2]
[423425745,1780107040000,-632.03,0.00014999,2]
[423425748,1780107040000,-632.03,0.00014999,2]
[423425750,1780107040000,-632.03,0.00014999,2]
[423425754,1780107040000,-632.03,0.00014999,2]
[423425756,1780107040000,-632.03,0.00014999,2]
[423425758,1780107040000,-632.03,0.00014999,2]
[423425766,1780107040000,-586.94,0.00014999,2]
[423425764,1780107040000,-586.94,0.00014999,2]
[423425762,1780107040000,-632.26519264,0.00014999,2]
[423425760,1780107040000,-632.03,0.00014999,2]
[423425768,1780107040000,-586.94,0.00014999,2]
[423425770,1780107040000,-586.94,0.00014999,2]
[423425774,1780107040000,-586.94,0.00014999,2]
[423425776,1780107040000,-586.94,0.00014999,2]
[423425778,1780107040000,-586.94,0.00014999,2]
[423425780,1780107040000,-586.94,0.00014999,2]
[423425779,1780107040000,-586.94,0.00014999,2]
[423425777,1780107040000,-586.94,0.00014999,2]
[423425772,1780107040000,-586.94,0.00014999,2]
[423425791,1780107040000,-587.13553055,0.00014999,2]
[423425782,1780107040000,-586.94,0.00014999,2]
[423425793,1780107040000,-500.0,0.00014999,2]
[423425784,1780107040000,-586.94,0.00014999,2]
[423425789,1780107040000,-586.94,0.00014999,2]
[423425786,1780107040000,-586.94,0.00014999,2]
[423425799,1780107040000,-500.0,0.00014999,2]
[423425801,1780107040000,-500.0,0.00014999,2]
[423425803,1780107040000,-500.0,0.00014999,2]
[423425805,1780107040000,-500.0,0.00014999,2]
[423425860,1780107040000,-823.3,0.00014999,2]
[423425894,1780107040000,-1267.3,0.00014999,2]
[423425873,1780107040000,-823.3,0.00014999,2]
[423425942,1780107040000,-736.64,0.00014999,2]
[423425946,1780107040000,-736.64,0.00014999,2]
[423425953,1780107040000,-736.64,0.00014999,2]
[423425944,1780107040000,-736.64,0.00014999,2]
[423425948,1780107040000,-736.64,0.00014999,2]
[423425951,1780107040000,-736.64,0.00014999,2]
[423425965,1780107040000,-500.0,0.00014999,2]
[423425955,1780107040000,-736.64,0.00014999,2]
[423425967,1780107040000,-500.0,0.00014999,2]
[423425969,1780107040000,-500.0,0.00014999,2]
[423425957,1780107040000,-736.64,0.00014999,2]
[423425971,1780107040000,-500.0,0.00014999,2]
[423425963,1780107040000,-500.0,0.00014999,2]
[423425938,1780107040000,-736.64,0.00014999,2]
[423425961,1780107040000,-500.0,0.00014999,2]
[423425974,1780107040000,-266.90977676,0.00014999,2]
[423425975,1780107040000,-765.01,0.00014999,2]
[423425978,1780107040000,-765.01,0.00014999,2]
[423425980,1780107040000,-765.01,0.00014999,2]
[423425990,1780107040000,-765.01,0.00014999,2]
[423425992,1780107040000,-765.01,0.00014999,2]
[423425994,1780107040000,-765.01,0.00014999,2]
[423425982,1780107040000,-765.01,0.00014999,2]
[423425986,1780107040000,-765.01,0.00014999,2]
[423425996,1780107040000,-765.01,0.00014999,2]
[423425984,1780107040000,-765.01,0.00014999,2]
[423425987,1780107040000,-765.01,0.00014999,2]
[423425869,1780107040000,-823.3,0.00014999,2]
[423425959,1780107040000,-736.66099601,0.00014999,2]
[423425940,1780107040000,-736.64,0.00014999,2]
[423425904,1780107040000,-1267.3,0.00014999,2]
[423425936,1780107040000,-736.64,0.00014999,2]
[423425931,1780107040000,-736.64,0.00014999,2]
[423425871,1780107040000,-823.3,0.00014999,2]
[423425875,1780107040000,-823.41071349,0.00014999,2]
[423425880,1780107040000,-1267.3,0.00014999,2]
[423425878,1780107040000,-1267.3,0.00014999,2]
[423425892,1780107040000,-1267.3,0.00014999,2]
[423425890,1780107040000,-1267.3,0.00014999,2]
[423425888,1780107040000,-1267.3,0.00014999,2]
[423425882,1780107040000,-1267.3,0.00014999,2]
[423425884,1780107040000,-1267.3,0.00014999,2]
[423425898,1780107040000,-1267.3,0.00014999,2]
[423425896,1780107040000,-1267.3,0.00014999,2]
[423425900,1780107040000,-1267.3,0.00014999,2]
[423425902,1780107040000,-1267.3,0.00014999,2]
[423425886,1780107040000,-1267.3,0.00014999,2]
[423425911,1780107040000,-1267.3,0.00014999,2]
[423425934,1780107040000,-736.64,0.00014999,2]
[423425906,1780107040000,-1267.3,0.00014999,2]
[423425932,1780107040000,-736.64,0.00014999,2]
[423425933,1780107040000,-736.64,0.00014999,2]
[423425927,1780107040000,-500.0,0.00014999,2]
[423425929,1780107040000,-500.0,0.00014999,2]
[423425919,1780107040000,-1267.51049859,0.00014999,2]
[423425925,1780107040000,-500.0,0.00014999,2]
[423425917,1780107040000,-1267.3,0.00014999,2]
[423425923,1780107040000,-500.0,0.00014999,2]
[423425915,1780107040000,-1267.3,0.00014999,2]
[423425913,1780107040000,-1267.3,0.00014999,2]
[423425909,1780107040000,-1267.3,0.00014999,2]
[423425921,1780107040000,-500.0,0.00014999,2]
[423426081,1780107041000,-693.83,0.00014999,2]
[423426087,1780107041000,-693.83,0.00014999,2]
[423426089,1780107041000,-693.83,0.00014999,2]
[423426085,1780107041000,-693.83,0.00014999,2]
[423426083,1780107041000,-693.83,0.00014999,2]
[423426072,1780107041000,-693.83,0.00014999,2]
[423426068,1780107041000,-693.83,0.00014999,2]
[423426062,1780107041000,-500.0,0.00014999,2]
[423426066,1780107041000,-693.83,0.00014999,2]
[423426074,1780107041000,-693.83,0.00014999,2]
[423426076,1780107041000,-693.83,0.00014999,2]
[423426091,1780107041000,-693.83,0.00014999,2]
[423426064,1780107041000,-553.36280109,0.00014999,2]
[423426097,1780107041000,-693.83,0.00014999,2]
[423426120,1780107041000,-716.95,0.00014999,2]
[423426093,1780107041000,-693.83,0.00014999,2]
[423426105,1780107041000,-693.83,0.00014999,2]
[423426103,1780107041000,-693.83,0.00014999,2]
[423426099,1780107041000,-693.83,0.00014999,2]
[423426107,1780107041000,-693.99390042,0.00014999,2]
[423426109,1780107041000,-716.95,0.00014999,2]
[423426111,1780107041000,-716.95,0.00014999,2]
[423426116,1780107041000,-716.95,0.00014999,2]
[423426113,1780107041000,-716.95,0.00014999,2]
[423426118,1780107041000,-716.95,0.00014999,2]
[423426122,1780107041000,-716.95,0.00014999,2]
[423426132,1780107041000,-716.95,0.00014999,2]
[423426078,1780107041000,-693.83,0.00014999,2]
[423426095,1780107041000,-693.83,0.00014999,2]
[423426070,1780107041000,-693.83,0.00014999,2]
[423426038,1780107041000,-743.81,0.00014999,2]
[423426056,1780107041000,-743.81,0.00014999,2]
[423425998,1780107041000,-765.01,0.00014999,2]
[423426000,1780107041000,-765.01,0.00014999,2]
[423426002,1780107041000,-765.01,0.00014999,2]
[423426004,1780107041000,-765.01,0.00014999,2]
[423426014,1780107041000,-765.01,0.00014999,2]
[423426012,1780107041000,-765.01,0.00014999,2]
[423426006,1780107041000,-765.01,0.00014999,2]
[423426032,1780107041000,-743.81,0.00014999,2]
[423426008,1780107041000,-765.01,0.00014999,2]
[423426028,1780107041000,-743.81,0.00014999,2]
[423426022,1780107041000,-743.81,0.00014999,2]
[423426010,1780107041000,-765.01,0.00014999,2]
[423426020,1780107041000,-743.81,0.00014999,2]
[423426024,1780107041000,-743.81,0.00014999,2]
[423426060,1780107041000,-500.0,0.00014999,2]
[423426018,1780107041000,-743.81,0.00014999,2]
[423426016,1780107041000,-765.11046541,0.00014999,2]
[423426026,1780107041000,-743.81,0.00014999,2]
[423426124,1780107041000,-716.95,0.00014999,2]
[423426034,1780107041000,-743.81,0.00014999,2]
[423426042,1780107041000,-743.81,0.00014999,2]
[423426036,1780107041000,-743.81,0.00014999,2]
[423426040,1780107041000,-743.81,0.00014999,2]
[423426046,1780107041000,-743.81,0.00014999,2]
[423426048,1780107041000,-743.81,0.00014999,2]
[423426050,1780107041000,-743.81,0.00014999,2]
[423426052,1780107041000,-743.81,0.00014999,2]
[423426054,1780107041000,-743.81,0.00014999,2]
[423426044,1780107041000,-743.81,0.00014999,2]
[423426058,1780107041000,-743.83879675,0.00014999,2]
[423426030,1780107041000,-743.81,0.00014999,2]
[423426134,1780107041000,-716.95,0.00014999,2]
[423426101,1780107041000,-693.83,0.00014999,2]
[423426136,1780107041000,-716.95,0.00014999,2]
[423426210,1780107041000,-1497.12,0.00014999,2]
[423426195,1780107041000,-150.0,0.00014999,2]
[423426197,1780107041000,-1497.12,0.00014999,2]
[423426199,1780107041000,-1497.12,0.00014999,2]
[423426212,1780107041000,-1497.12,0.00014999,2]
[423426201,1780107041000,-1497.12,0.00014999,2]
[423426216,1780107041000,-1497.12,0.00014999,2]
[423426214,1780107041000,-1497.12,0.00014999,2]
[423426218,1780107041000,-1497.12,0.00014999,2]
[423426220,1780107041000,-1497.12,0.00014999,2]
[423426222,1780107041000,-1497.12,0.00014999,2]
[423426224,1780107041000,-1497.12,0.00014999,2]
[423426226,1780107041000,-1497.12,0.00014999,2]
[423426232,1780107041000,-1497.12,0.00014999,2]
[423426228,1780107041000,-1497.12,0.00014999,2]
[423426230,1780107041000,-1497.12,0.00014999,2]
[423426234,1780107041000,-1497.12,0.00014999,2]
[423426239,1780107041000,-1497.23525507,0.00014999,2]
[423426243,1780107041000,-500.0,0.00014999,6]
[423426236,1780107041000,-1497.12,0.00014999,2]
[423426241,1780107041000,-500.0,0.00014999,5]
[423426245,1780107041000,-500.0,0.00014999,7]
[423426247,1780107041000,-500.0,0.00014999,8]
[423426257,1780107041000,-500.0,0.00014999,13]
[423426259,1780107041000,-500.0,0.00014999,14]
[423426251,1780107041000,-500.0,0.00014999,10]
[423426128,1780107041000,-716.95,0.00014999,2]
[423426253,1780107041000,-500.0,0.00014999,11]
[423426255,1780107041000,-500.0,0.00014999,12]
[423426207,1780107041000,-1497.12,0.00014999,2]
[423426205,1780107041000,-1497.12,0.00014999,2]
[423426249,1780107041000,-500.0,0.00014999,9]
[423426193,1780107041000,-410.30161227,0.00014999,2]
[423426203,1780107041000,-1497.12,0.00014999,2]
[423426140,1780107041000,-716.95,0.00014999,2]
[423426130,1780107041000,-716.95,0.00014999,2]
[423426138,1780107041000,-716.95,0.00014999,2]
[423426142,1780107041000,-716.95,0.00014999,2]
[423426155,1780107041000,-500.0,0.00014999,2]
[423426152,1780107041000,-500.0,0.00014999,2]
[423426156,1780107041000,-500.0,0.00014999,2]
[423426159,1780107041000,-500.0,0.00014999,2]
[423426161,1780107041000,-500.0,0.00014999,2]
[423426144,1780107041000,-716.95,0.00014999,2]
[423426162,1780107041000,-500.0,0.00014999,2]
[423426150,1780107041000,-717.01183176,0.00014999,2]
[423426146,1780107041000,-716.95,0.00014999,2]
[423426148,1780107041000,-716.95,0.00014999,2]
[423426126,1780107041000,-716.95,0.00014999,2]
[423426166,1780107041000,-500.0,0.00014999,2]
[423426164,1780107041000,-500.0,0.00014999,2]
[423426191,1780107041000,-500.0,0.00014999,2]
[423426180,1780107041000,-500.0,0.00014999,2]
[423426185,1780107041000,-500.0,0.00014999,2]
[423426187,1780107041000,-500.0,0.00014999,2]
[423426183,1780107041000,-500.0,0.00014999,2]
[423426189,1780107041000,-500.0,0.00014999,2]
[423426174,1780107041000,-512.54439461,0.00014999,2]
[423426176,1780107041000,-500.0,0.00014999,2]
[423426178,1780107041000,-295.37631974,0.00014999,2]
[423426170,1780107041000,-500.0,0.00014999,2]
[423426172,1780107041000,-500.0,0.00014999,2]
[423426168,1780107041000,-500.0,0.00014999,2]
[423426186,1780107041000,-500.0,0.00014999,2]
[423426278,1780107042000,-500.0,0.00014999,21]
[423426282,1780107042000,-500.0,0.00014999,21]
[423426280,1780107042000,-500.0,0.00014999,21]
[423426294,1780107042000,-500.0,0.00014999,21]
[423426301,1780107042000,-4911.21,0.00014999,2]
[423426299,1780107042000,-470.11392164,0.00014999,21]
[423426305,1780107042000,-4911.21,0.00014999,2]
[423426307,1780107042000,-4911.21,0.00014999,2]
[423426297,1780107042000,-500.0,0.00014999,21]
[423426276,1780107042000,-500.0,0.00014999,21]
[423426274,1780107042000,-500.0,0.00014999,21]
[423426290,1780107042000,-500.0,0.00014999,21]